bitfinex-derivatives/quotes_ETHF0:USTF0_20210111
["timestamp","ask_amount","ask_price","bid_price","bid_amount"]
[1610363754245,1.96512198,1075.5,1073.7,2.3368]
[1610363754837,0.86830971,1075.5,1073.7,2.3368]
[1610363755243,4.00959,1075.2,1074.7,4.00959]
[1610363755642,3.83419834,1075.6,1074.7,4.00959]
[1610363755840,1.96690958,1075.7,1074.7,5.80799]
[1610363756243,1.96797774,1075.8,1074.7,5.80799]
[1610363756444,0.86977567,1075.7,1074.7,5.80799]
[1610363756843,0.86977567,1075.7,1074.7,1.7984]
[1610363757041,0.86898922,1075.6,1074.7,1.7984]
[1610363757241,4.00959,1074.8,1074.7,1.7984]
[1610363758244,4.00959,1074.8,1073.7,2.3368]
[1610363758442,4.00959,1074.8,1073.5,73.6376]
[1610363758643,5.78789,1074.8,1073.5,73.6376]
[1610363758844,1.95649597,1074.6,1073.5,73.0605]
[1610363759043,1.95649597,1074.6,1072.6,71.8895]
[1610363759245,4.00959,1072.7,1072.6,71.8895]
[1610363760444,2.1525,1073.6,1072.6,71.8895]
[1610363760645,0.8621736,1074.2,1072.6,74.2481]
[1610363761044,0.86278717,1074.3,1072.6,74.2481]
[1610363761247,4.00959,1074.6,1074.1,4.00959]
[1610363761444,4.00959,1074.6,1074.0,1.5331]
[1610363762448,4.00959,1074.6,1072.6,74.2481]
[1610363762646,1.95605264,1074.7,1072.6,74.2481]
[1610363762845,8.5555,1074.8,1072.6,74.2481]
[1610363763246,8.5555,1074.8,1074.7,4.00959]
[1610363764046,2.6381945,1075.5,1074.7,4.00959]
[1610363764047,1.0271945,1075.5,1074.7,4.00959]
[1610363764246,0.16,1075.5,1074.7,4.00959]
[1610363764549,1.9644202,1075.8,1074.7,4.00959]
[1610363764746,1.96727499,1076.0,1074.7,4.00959]
[1610363765146,1.96759457,1076.1,1074.7,4.00959]
[1610363765345,1.96759457,1076.1,1074.6,2.4062]
[1610363765546,1.8916,1076.1,1074.6,2.4062]
[1610363765750,3.85889521,1076.1,1074.6,2.4062]
[1610363767047,1.09668768,1075.9,1074.6,2.4062]
[1610363767248,1.96489876,1075.9,1074.6,2.4062]
[1610363767448,0.86619441,1075.5,1074.6,2.4062]
[1610363767849,2.67922662,1075.8,1074.6,2.4062]
[1610363768049,1.8116,1075.8,1074.6,2.4062]
[1610363768752,1.8116,1075.8,1074.3,2.1507]
[1610363768952,1.8116,1075.8,1074.6,2.0715]
[1610363769350,3.77804031,1075.8,1074.6,2.0715]
[1610363770350,1.8116,1075.8,1074.6,2.0715]
[1610363771350,0.52938951,1076.3,1075.6,4.00959]
[1610363771952,1.84173231,1076.7,1075.6,4.00959]
[1610363772151,7.50354671,1076.8,1075.6,4.00959]
[1610363772452,1.84347397,1076.7,1075.6,4.00959]
[1610363772651,4.17547397,1076.7,1075.6,4.00959]
[1610363772852,7.57197752,1076.7,1075.6,4.00959]
[1610363773252,2.332,1076.7,1075.6,4.00959]
[1610363773452,6.34159,1076.7,1076.5,4.00959]
[1610363773653,6.34159,1076.7,1075.4,2.3706]
[1610363773851,6.34159,1076.7,1076.1,1.5359]
[1610363774657,2.332,1076.7,1076.1,1.5359]
[1610363774853,7.50872829,1077.0,1076.1,1.5359]
[1610363775154,60.4166,1077.1,1076.1,1.5359]
[1610363775353,60.4166,1077.1,1077.0,4.00959]
[1610363775755,60.4166,1077.1,1076.4,1.7422]
[1610363776354,3.42743028,1077.3,1076.4,1.7422]
[1610363776757,1.85448143,1077.4,1076.4,1.7422]
[1610363777356,1.85448143,1077.4,1077.3,4.00959]
[1610363777558,3.24754688,1077.6,1077.3,4.00959]
[1610363777559,1.85301725,1077.6,1077.3,4.00959]
[1610363777757,1.85341575,1077.7,1077.3,4.00959]
[1610363778357,5.24624246,1077.8,1077.0,2.0327]
[1610363778759,1.85330653,1077.8,1077.0,2.0327]
[1610363779158,1.85293427,1078.0,1077.0,2.0327]
[1610363779358,1.85293427,1078.0,1077.9,4.00959]
[1610363779558,1.85407693,1078.1,1077.9,4.00959]
[1610363779759,0.04798561,1078.2,1077.9,4.00959]
[1610363779959,7.14428439,1078.4,1077.9,5.60619]
[1610363780161,2.5046854,1078.4,1077.9,5.60619]
[1610363780560,4.64982808,1078.8,1077.9,5.60619]
[1610363780760,4.65279344,1078.9,1077.9,5.60619]
[1610363781161,3.3902168,1078.7,1077.9,5.60619]
[1610363781362,4.65279344,1078.9,1077.9,5.60619]
[1610363781363,4.65279344,1078.9,1078.6,4.00959]
[1610363781762,14.69019376,1079.1,1078.6,4.00959]
[1610363781966,14.69019376,1079.1,1078.6,5.58659]
[1610363782166,9.03893994,1079.1,1078.6,5.58659]
[1610363782365,56.6875,1079.2,1078.6,5.58659]
[1610363783368,60.69709,1079.2,1078.8,4.00959]
[1610363783766,56.6875,1079.2,1078.8,4.00959]
[1610363785271,52.3179,1079.2,1078.8,4.00959]
[1610363785471,52.3179,1079.2,1078.6,1.577]
[1610363785472,4.6770036,1080.0,1079.1,4.00959]
[1610363785666,4.6770036,1080.0,1079.1,5.73969]
[1610363785873,4.68322254,1080.3,1079.1,5.73969]
[1610363786267,4.69168113,1080.6,1079.1,5.73969]
[1610363786668,4.69198677,1080.5,1079.1,5.73969]
[1610363787067,4.6898411,1080.4,1079.1,5.73969]
[1610363787267,4.69432211,1080.6,1079.1,5.73969]
[1610363787466,4.69432211,1080.6,1079.1,1.7301]
[1610363787666,4.69856874,1080.7,1079.1,1.7301]
[1610363787970,3.38326088,1080.5,1079.1,1.7301]
[1610363788171,3.21826088,1080.5,1079.1,1.7301]
[1610363788380,4.53476874,1080.7,1079.1,1.7301]
[1610363788579,6.43088742,1080.8,1079.1,1.7301]
[1610363788793,6.59543658,1081.0,1079.1,1.7301]
[1610363789184,5.63657375,1081.2,1079.1,1.7301]
[1610363789384,5.63657375,1081.2,1081.1,4.00959]
[1610363789574,5.63546447,1081.3,1081.1,4.00959]
[1610363789780,18.04248473,1081.5,1081.1,4.00959]
[1610363790168,3.31346523,1081.3,1081.0,1.8758]
[1610363790567,3.31346523,1081.3,1079.1,1.7301]
[1610363790768,18.04248473,1081.5,1078.6,1.577]
[1610363790769,3.31379397,1081.2,1078.6,1.577]
[1610363790967,3.31379397,1081.2,1078.5,1.69083664]
[1610363791168,3.3812607,1081.2,1078.6,1.69063035]
[1610363791369,6.69633681,1081.4,1081.1,4.00959]
[1610363791772,73.0389,1081.6,1081.1,4.00959]
[1610363793170,21.34105889,1081.5,1081.1,4.00959]
[1610363793371,18.02880508,1081.5,1081.4,4.00959]
[1610363793770,73.0389,1081.6,1081.3,2.2458]
[1610363794475,73.0389,1081.6,1080.9,2.4144]
[1610363794972,2.2014,1081.8,1080.9,2.4144]
[1610363795372,6.21099,1081.8,1081.7,4.00959]
[1610363795772,2.2014,1081.8,1081.7,4.00959]
[1610363796373,2.73722464,1082.0,1081.7,4.00959]
[1610363796573,12.31532115,1082.7,1081.7,4.00959]
[1610363796975,133.1747,1086.0,1081.7,4.00959]
[1610363796976,12.33869246,1083.4,1081.7,4.00959]
[1610363797174,12.33117293,1083.5,1081.7,4.00959]
[1610363797373,12.33117293,1083.5,1082.9,4.00959]
[1610363797975,12.33531395,1083.6,1082.9,4.00959]
[1610363798174,12.33980641,1083.7,1082.9,4.00959]
[1610363798576,11.25056843,1083.4,1082.7,2.2792]
[1610363798776,11.25056843,1083.4,1081.5,1.8879]
[1610363798976,4.74431201,1083.0,1081.5,1.8879]
[1610363799176,4.73969547,1082.9,1081.5,1.8879]
[1610363799378,4.00959,1082.6,1082.3,4.00959]
[1610363799578,4.73969547,1082.9,1082.3,4.00959]
[1610363799978,8.11673546,1083.1,1082.3,4.00959]
[1610363800176,11.25059174,1082.8,1082.3,4.00959]
[1610363801377,1.89709177,1083.0,1082.3,4.00959]
[1610363801378,4.00959,1082.7,1082.3,4.00959]
[1610363801778,1.51578911,1082.6,1082.1,1.9446]
[1610363802181,1.51453502,1082.4,1081.5,53.947]
[1610363802379,1.51502854,1082.5,1081.5,53.947]
[1610363803079,1.51487395,1082.6,1081.5,53.947]
[1610363803479,1.51487395,1082.6,1082.5,4.00959]
[1610363803681,1.51371446,1082.5,1081.9,1.5988]
[1610363804081,1.51259838,1082.4,1081.9,1.5988]
[1610363804684,1.50998177,1082.3,1081.5,1.8879]
[1610363804880,3.96968177,1082.3,1080.9,2.4144]
[1610363805082,1.5075242,1082.0,1080.1,0.56309672]
[1610363805281,3.5372242,1082.0,1080.1,0.56309672]
[1610363805483,1.504787,1081.7,1080.8,4.00959]
[1610363805683,1.50158757,1081.5,1080.8,4.00959]
[1610363806082,3.08697578,1081.7,1080.8,4.00959]
[1610363806483,1.5862,1081.7,1080.8,4.00959]
[1610363806682,1.5862,1081.7,1080.6,1.7869]
[1610363806883,11.26411032,1081.6,1080.6,1.7869]
[1610363807082,1.49865282,1081.3,1079.4,0.56336375]
[1610363807285,5.63815282,1081.3,1079.4,0.56336375]
[1610363807483,4.00959,1079.5,1079.4,0.56336375]
[1610363807684,4.00959,1079.5,1078.9,0.84533684]
[1610363808084,6.35139,1079.5,1078.4,0.8455807]
[1610363808283,6.35139,1079.5,1078.0,1.6911614]
[1610363808284,6.35139,1079.5,1078.0,0.8458776]
[1610363808683,6.35139,1079.5,1077.8,0.84607458]
[1610363809084,6.35139,1079.5,1077.6,0.84639409]
[1610363809483,6.35139,1079.5,1077.1,1.69278818]
[1610363809484,4.00959,1077.7,1077.1,4.85624528]
[1610363809684,4.00959,1077.7,1076.8,0.84672325]
[1610363810084,4.00959,1077.7,1076.5,0.84690831]
[1610363810485,4.00959,1077.7,1076.0,0.84733213]
[1610363810886,5.4810024,1077.7,1075.6,0.847712]
[1610363811085,4.86264584,1077.6,1075.5,0.84795422]
[1610363811286,6.96584584,1077.6,1075.5,0.84795422]
[1610363811486,4.00959,1076.7,1076.0,4.00959]
[1610363811686,1.46901846,1077.4,1076.0,4.00959]
[1610363811887,1.5833,1077.0,1076.0,6.34889]
[1610363812098,3.57376598,1077.6,1076.0,6.34889]
[1610363812311,2.1032,1077.6,1076.0,6.34889]
[1610363812500,2.362,1077.9,1076.0,6.34889]
[1610363812709,1.47410079,1078.1,1076.0,6.34889]
[1610363812900,1.47554694,1078.3,1076.1,0.84743931]
[1610363813293,1.48007009,1078.8,1076.7,0.84727677]
[1610363813499,4.00959,1078.7,1077.9,4.00959]
[1610363813895,4.00959,1078.7,1076.7,2.84468116]
[1610363814107,5.48798383,1078.7,1076.7,1.9976]
[1610363814390,3.38892201,1078.6,1076.7,1.9976]
[1610363814789,1.47860673,1078.8,1076.7,1.9976]
[1610363815293,4.86774966,1078.9,1076.8,0.8470072]
[1610363815488,4.86774966,1078.9,1078.7,4.00959]
[1610363815689,3.49075223,1079.0,1078.7,4.00959]
[1610363816103,2.0098,1079.0,1078.7,4.00959]
[1610363816295,1.48252887,1079.2,1078.7,4.00959]
[1610363816492,1.48368296,1079.4,1078.7,4.00959]
[1610363816891,8.35035315,1079.9,1078.7,4.00959]
[1610363816892,1.48885852,1080.0,1078.7,4.00959]
[1610363817092,1.49293453,1080.5,1078.7,4.2915214]
[1610363817497,1.49336863,1080.6,1079.9,4.00959]
[1610363817694,1.49336863,1080.6,1079.9,6.06429]
[1610363817893,1.49284207,1080.5,1079.9,6.06429]
[1610363818293,1.49422622,1080.7,1079.9,6.06429]
[1610363818494,3.2732893,1080.9,1079.9,6.06429]
[1610363818495,4.87844097,1080.9,1079.9,6.06429]
[1610363818897,1.49748256,1081.1,1079.9,6.06429]
[1610363819298,1.5216,1081.3,1079.9,6.06429]
[1610363819497,1.49901072,1081.4,1081.2,4.00959]
[1610363819699,3.28377036,1081.6,1081.2,4.00959]
[1610363819700,1.49944029,1081.6,1081.2,4.00959]
[1610363819900,1.50141892,1081.8,1081.2,6.25259]
[1610363820700,1.50188957,1081.9,1081.2,2.243]
[1610363820901,4.88039977,1081.7,1081.2,2.243]
[1610363821101,4.88039977,1081.7,1080.2,52.1508]
[1610363821302,1.87581701,1081.8,1080.2,52.1508]
[1610363821303,1.50029133,1081.6,1080.2,52.1508]
[1610363821500,1.50029133,1081.6,1081.5,4.00959]
[1610363821701,1.50505602,1082.3,1081.5,6.43299]
[1610363822400,1.88132002,1082.4,1081.5,6.43299]
[1610363822401,4.88455423,1082.4,1081.5,2.4234]
[1610363822601,1.50573801,1082.2,1081.5,2.4234]
[1610363823001,1.50442322,1082.1,1081.5,2.4234]
[1610363823603,1.50606511,1082.4,1081.5,2.4234]
[1610363824004,1.50490281,1082.3,1081.5,2.4234]
[1610363824202,1.50417582,1082.1,1081.5,2.4234]
[1610363824605,1.50340725,1082.0,1081.5,2.4234]
[1610363825004,1.5047759,1082.2,1081.5,2.4234]
[1610363825407,4.00959,1081.7,1081.5,2.4234]
[1610363826508,5.51180931,1081.7,1081.5,0.1441]
[1610363826708,5.51180931,1081.7,1079.9,2.33630132]
[1610363826908,5.51180931,1081.7,1079.9,2.0547]
[1610363826909,4.88164955,1081.6,1079.9,2.0547]
[1610363827135,4.88164955,1081.6,1079.7,0.28168407]
[1610363827334,1.49932527,1081.3,1079.5,0.2817228]
[1610363827517,4.00959,1079.6,1079.5,0.2817228]
[1610363827712,4.00959,1079.6,1079.1,0.28185174]
[1610363828115,4.00959,1079.6,1078.6,2.64379954]
[1610363828312,4.00959,1079.6,1078.6,2.0799]
[1610363828516,4.00959,1079.6,1078.0,2.97869311]
[1610363828712,4.00959,1079.6,1078.0,2.4146]
[1610363828917,4.00959,1079.6,1077.9,0.56415592]
[1610363829117,4.00959,1079.6,1077.7,0.56421081]
[1610363829315,3.38557826,1079.5,1077.6,0.56426304]
[1610363829513,4.00959,1077.7,1077.6,0.56426304]
[1610363829710,4.00959,1077.7,1077.4,0.84639456]
[1610363829711,4.00959,1077.7,1077.4,0.56447426]
[1610363830110,4.00959,1077.7,1077.2,1.12894851]
[1610363830111,4.00959,1077.7,1077.2,0.56451467]
[1610363830512,4.00959,1077.7,1077.1,0.5646511]
[1610363830711,4.00959,1077.7,1076.8,0.56479045]
[1610363831111,4.00959,1077.7,1076.3,0.84730136]
[1610363831511,1.8315,1078.1,1076.2,1.12973515]
[1610363831512,1.8315,1078.1,1076.2,0.84743088]
[1610363831713,1.8315,1078.1,1076.2,3.25903088]
[1610363831913,0.46086286,1078.0,1076.2,2.4116]
[1610363832511,2.93757086,1078.1,1076.2,3.25896672]
[1610363832512,1.8315,1078.1,1076.2,3.25896672]
[1610363832711,0.46115754,1078.2,1076.2,3.25896672]
[1610363832912,2.85921887,1078.4,1076.4,0.84735215]
[1610363833114,0.46111674,1078.2,1076.2,3.25908488]
[1610363833512,4.00959,1076.4,1076.2,2.4116]
[1610363834513,1.6661,1076.4,1075.9,4.00959]
[1610363835617,2.3348,1077.3,1076.3,4.00959]
[1610363835816,2.3348,1077.3,1076.3,5.95159]
[1610363836017,0.46019864,1077.8,1076.3,5.95159]
[1610363836418,0.46124873,1078.2,1076.3,6.79908592]
[1610363836616,1.56781014,1078.2,1076.3,5.95159]
[1610363837016,1.5654094,1077.9,1076.3,5.95159]
[1610363837216,3.6190094,1077.9,1076.3,5.95159]
[1610363837417,2.51401453,1077.9,1076.3,5.95159]
[1610363837617,4.00959,1077.6,1076.7,4.00959]
[1610363837819,6.46039,1077.6,1076.7,4.00959]
[1610363838018,6.46039,1077.6,1076.3,1.942]
[1610363838420,6.9203965,1077.6,1076.3,1.942]
[1610363838819,2.9108065,1077.6,1076.3,1.942]
[1610363839046,0.46074595,1077.9,1076.3,1.942]
[1610363839219,3.22982907,1078.3,1076.3,1.942]
[1610363839220,0.46188348,1078.4,1076.4,0.8474131]
[1610363839421,0.46188348,1078.4,1076.6,0.28247103]
[1610363839619,0.46188348,1078.4,1078.3,4.00959]
[1610363839819,0.46270835,1078.8,1078.3,6.38409]
[1610363840020,1.57374293,1079.0,1078.3,6.38409]
[1610363840421,1.57494228,1079.2,1078.3,6.38409]
[1610363840822,0.46321832,1079.2,1078.3,6.38409]
[1610363841430,1.57501263,1079.2,1078.3,6.38409]
[1610363841822,0.46321832,1079.2,1078.3,6.38409]
[1610363842023,1.57646859,1079.4,1078.3,6.38409]
[1610363842423,0.46457398,1079.7,1078.3,6.38409]
[1610363842823,1.58082494,1079.9,1078.3,6.38409]
[1610363843222,1.58057824,1079.8,1078.3,6.38409]
[1610363843424,3.91187824,1079.8,1078.3,6.38409]
[1610363843622,0.46426055,1079.5,1078.5,4.00959]
[1610363843822,1.57846154,1079.5,1078.5,4.00959]
[1610363844223,1.48560132,1079.6,1078.5,4.00959]
[1610363844224,0.46447167,1079.6,1078.5,4.00959]
[1610363844624,1.57913456,1079.7,1078.3,2.3745]
[1610363845024,1.57727037,1079.5,1078.3,2.0648]
[1610363845424,1.5744773,1079.2,1078.3,2.0648]
[1610363845631,4.00959,1079.2,1078.3,6.07439]
[1610363846030,6.6472866,1079.2,1078.3,6.07439]
[1610363846428,1.57393989,1079.1,1078.3,6.07439]
[1610363846628,3.7488588,1079.2,1078.3,6.07439]
[1610363847029,2.1745,1079.2,1078.3,6.07439]
[1610363847228,1.57594474,1079.4,1078.3,6.07439]
[1610363847430,0.46463085,1079.8,1078.3,6.07439]
[1610363847629,0.46463085,1079.8,1078.3,2.0648]
[1610363848031,1.58148571,1080.1,1078.3,2.34680463]
[1610363848234,1.58343321,1080.2,1078.4,0.28195866]
[1610363849033,1.58260239,1080.0,1078.3,2.0648]
[1610363849233,1.58308726,1080.1,1078.4,0.28199148]
[1610363849634,0.46559107,1080.2,1080.0,4.00959]
[1610363850035,1.58325711,1080.3,1080.0,6.03859]
[1610363850435,1.58416322,1080.4,1080.0,6.03859]
[1610363850836,1.58496973,1080.6,1080.0,6.03859]
[1610363851237,1.49180361,1080.8,1080.0,6.03859]
[1610363851436,1.49195205,1080.9,1080.0,6.03859]
[1610363851635,1.08635205,1080.9,1080.8,4.00959]
[1610363851836,1.86612857,1081.3,1080.8,2.4276]
[1610363852235,7.50078068,1081.2,1080.8,2.4276]
[1610363852435,1.85936999,1081.0,1080.8,2.4276]
[1610363852836,3.25405602,1080.9,1080.0,2.029]
[1610363853237,1.85676579,1080.9,1080.0,2.029]
[1610363853436,3.38261273,1080.8,1080.0,2.029]
[1610363853636,4.00959,1080.1,1080.0,2.029]
[1610363854737,4.00959,1080.1,1079.0,60.2009]
[1610363855138,1.84897933,1080.4,1079.0,60.2009]
[1610363855342,1.84895667,1080.5,1079.0,62.0996]
[1610363855539,4.00959,1079.8,1079.0,62.0996]
[1610363856741,5.85939,1079.8,1079.0,62.0996]
[1610363856942,5.22753255,1079.7,1079.0,60.2009]
[1610363857243,1.8384026,1079.5,1079.0,60.2009]
[1610363857441,4.0606026,1079.5,1079.0,60.2009]
[1610363857644,4.00959,1079.1,1079.0,60.2009]
[1610363857845,6.12139,1079.1,1079.0,59.8339]
[1610363858044,6.12139,1079.1,1077.4,4.00959]
[1610363858245,9.50962982,1079.1,1077.4,4.00959]
[1610363858445,6.12139,1079.1,1077.4,4.00959]
[1610363858947,6.12139,1079.1,1077.3,0.28233396]
[1610363859145,6.12139,1079.1,1077.2,0.56463071]
[1610363859146,6.12139,1079.1,1077.2,0.2823442]
[1610363859546,6.12139,1079.1,1076.9,1.12937682]
[1610363859547,5.22507158,1079.0,1076.9,0.28237964]
[1610363859747,5.22507158,1079.0,1077.1,4.00959]
[1610363859748,1.83433503,1078.8,1077.1,4.00959]
[1610363859947,4.05463503,1078.8,1077.1,4.00959]
[1610363860148,2.2203,1078.8,1077.1,4.00959]
[1610363860747,3.38947215,1078.7,1076.8,0.28245601]
[1610363861147,3.38947215,1078.7,1076.7,0.28249124]
[1610363861550,1.83055948,1078.6,1076.6,2.68250221]
[1610363861749,1.83055948,1078.6,1077.2,4.00959]
[1610363861948,1.83055948,1078.6,1077.2,5.72989]
[1610363862149,5.21989799,1078.7,1077.2,5.72989]
[1610363862352,2.2203,1078.8,1077.2,5.72989]
[1610363862750,2.2203,1078.8,1077.2,1.7203]
[1610363863151,3.38974031,1078.7,1077.2,1.7203]
[1610363863751,2.2203,1078.8,1077.2,1.7203]
[1610363863752,4.00959,1078.6,1077.2,1.7203]
[1610363864354,5.21828473,1078.5,1076.6,2.4]
[1610363864551,7.54578473,1078.5,1076.4,0.28256394]
[1610363864751,7.54578473,1078.5,1076.2,0.84769183]
[1610363864752,1.82550872,1078.3,1076.2,0.28258749]
[1610363865352,1.82337638,1078.2,1076.1,2.11441129]
[1610363865551,3.47767638,1078.2,1076.1,2.11441129]
[1610363865751,3.47767638,1078.2,1077.4,4.00959]
[1610363865952,1.6543,1078.2,1077.0,2.1147]
[1610363866356,3.39143788,1078.1,1077.0,2.1147]
[1610363867158,3.5366,1078.2,1077.0,2.1147]
[1610363867357,3.39176061,1078.0,1076.7,2.2832]
[1610363867759,4.00959,1076.8,1076.7,2.2832]
[1610363868156,4.00959,1076.8,1076.7,2.0588]
[1610363868357,2.2069,1077.2,1075.6,57.6181]
[1610363868556,2.0664,1077.5,1075.6,61.186]
[1610363868757,2.0664,1077.5,1075.7,0.28276088]
[1610363869361,2.0664,1077.5,1075.6,59.91491222]
[1610363869362,2.0664,1077.5,1075.6,59.3493]
[1610363869760,3.39416159,1077.4,1075.6,59.3493]
[1610363870159,3.39416159,1077.4,1075.6,1.7312]
[1610363870962,4.72384813,1078.2,1075.6,1.7312]
[1610363871165,1.80620096,1077.4,1075.6,1.7312]
[1610363871369,2.1185,1077.4,1075.6,1.7312]
[1610363871765,4.00959,1076.0,1075.8,4.00959]
[1610363871970,2.1185,1077.4,1075.8,4.00959]
[1610363872169,2.43,1077.0,1075.8,4.00959]
[1610363872566,2.43,1077.0,1075.6,3.5697]
[1610363872766,2.43,1077.0,1075.6,1.7312]
[1610363873567,2.43,1077.0,1074.3,2.26322494]
[1610363873767,4.00959,1075.3,1075.1,4.00959]
[1610363874670,1.8009,1076.6,1075.1,4.00959]
[1610363874868,1.8009,1076.6,1075.1,5.91189]
[1610363875669,4.00959,1075.9,1075.4,4.00959]
[1610363876070,4.00959,1075.9,1075.1,1.9023]
[1610363877071,1.8009,1076.6,1075.1,1.9023]
[1610363877671,4.00959,1076.4,1075.1,1.9023]
[1610363879776,4.00959,1075.5,1075.1,1.9023]
[1610363879976,3.4749,1076.4,1074.9,4.00959]
[1610363879977,1.8575,1076.1,1074.9,4.00959]
[1610363880176,1.603,1076.4,1074.9,6.43949]
[1610363881376,1.603,1076.4,1074.9,7.28813454]
[1610363881579,1.603,1076.4,1075.1,0.28288151]
[1610363881777,79.0839,1076.7,1076.3,4.00959]
[1610363881976,77.0979,1076.7,1076.3,4.00959]
[1610363882378,66.6049,1077.3,1076.3,4.00959]
[1610363882577,1.43019931,1077.9,1076.3,4.00959]
[1610363882779,1.43400102,1078.1,1076.3,4.00959]
[1610363883181,1.43509845,1078.2,1076.3,4.00959]
[1610363883582,4.48916735,1078.5,1076.4,0.28257903]
[1610363883583,1.43695673,1078.5,1076.4,0.28257903]
[1610363883782,1.43695673,1078.5,1078.4,4.00959]
[1610363883983,1.43642852,1078.7,1078.4,4.00959]
[1610363884387,1.43756757,1078.9,1078.4,4.00959]
[1610363884585,1.79825882,1079.2,1078.4,4.00959]
[1610363884782,0.01155882,1079.2,1078.4,4.00959]
[1610363884985,8.11919548,1079.7,1078.4,4.00959]
[1610363885184,4.96090285,1079.7,1078.4,4.00959]
[1610363885385,4.05530285,1079.7,1078.4,5.87419]
[1610363885583,3.16414523,1080.2,1078.4,5.87419]
[1610363885782,11.28452459,1079.6,1078.4,1.8646]
[1610363886191,10.00422459,1079.6,1078.4,1.8646]
[1610363886389,5.78482459,1079.6,1078.4,1.8646]
[1610363886785,5.78482459,1079.6,1078.4,2.14669775]
[1610363886984,2.459e-05,1079.6,1078.5,0.28203876]
[1610363887185,3.17281791,1080.8,1078.5,3.53229098]
[1610363887384,3.17281791,1080.8,1078.6,0.2820095]
[1610363887787,4.53525021,1081.1,1080.7,4.00959]
[1610363887986,4.53525021,1081.1,1080.7,6.43119]
[1610363888189,6.347538,1081.2,1080.7,6.43119]
[1610363888190,4.53870407,1081.2,1080.7,6.43119]
[1610363888389,4.33899154,1081.5,1080.7,6.43119]
[1610363888786,4.34329249,1081.4,1080.7,6.43119]
[1610363888987,13.3701271,1081.7,1080.7,6.43119]
[1610363889388,6.373253,1081.8,1080.7,6.43119]
[1610363889789,6.37925763,1081.9,1080.7,2.4216]
[1610363890191,6.38397463,1082.0,1080.7,2.4216]
[1610363890789,6.38948418,1082.1,1080.7,2.4216]
[1610363890988,6.38673866,1082.0,1080.7,2.4216]
[1610363891389,0.730415,1081.6,1080.7,2.4216]
[1610363891587,6.39569637,1082.2,1080.7,2.4216]
[1610363891789,6.40200283,1082.4,1082.1,4.00959]
[1610363892187,6.40200283,1082.4,1081.8,2.2558]
[1610363892388,6.40400706,1082.5,1081.8,2.2558]
[1610363893292,6.40400706,1082.5,1081.5,3.8507]
[1610363893489,8.12000706,1082.5,1081.5,3.8507]
[1610363893690,0.22832437,1081.7,1081.5,1.9876]
[1610363894292,0.22842575,1081.8,1081.5,1.9876]
[1610363894692,6.40309681,1082.6,1081.5,3.8485]
[1610363894892,4.77629681,1082.6,1081.5,3.8485]
[1610363895093,6.40952753,1082.8,1081.5,3.8485]
[1610363895295,64.84579985,1083.2,1081.5,3.8485]
[1610363895717,4.00959,1082.8,1081.5,3.8485]
[1610363895893,5.52809,1082.8,1081.5,3.8485]
[1610363896493,5.52809,1082.8,1081.5,1.9876]
[1610363896693,13.78133154,1082.8,1081.5,1.9876]
[1610363897093,8.25133563,1082.7,1081.5,1.9876]
[1610363897293,8.25115536,1082.6,1081.5,1.9876]
[1610363897694,4.00959,1081.7,1081.5,1.9876]
[1610363898095,4.00959,1081.7,1080.7,2.4216]
[1610363898294,4.00959,1081.7,1080.4,56.1523]
[1610363898694,3.20689793,1081.9,1080.4,56.1523]
[1610363898894,3.20689793,1081.9,1080.4,58.3421]
[1610363899095,3.21152442,1082.1,1080.4,58.3421]
[1610363899295,3.21507753,1082.3,1080.4,58.3421]
[1610363899798,4.00959,1081.3,1080.4,58.3421]
[1610363900298,3.21002254,1082.0,1080.4,58.3421]
[1610363900899,3.21386755,1082.2,1080.4,58.3421]
[1610363901299,3.21632389,1082.4,1080.4,58.3421]
[1610363901698,4.00959,1082.1,1082.0,4.00959]
[1610363901898,4.00959,1082.1,1081.0,1.8364]
[1610363902402,3.37923033,1082.0,1081.0,1.8364]
[1610363902701,4.00959,1082.1,1081.0,1.8364]
[1610363902901,4.00959,1082.1,1081.0,4.2308]
[1610363903502,3.21314051,1082.4,1081.0,4.2308]
[1610363903703,3.21314051,1082.4,1082.3,4.00959]
[1610363903904,8.25515842,1082.7,1082.3,4.00959]
[1610363903905,3.21465033,1082.6,1082.3,4.00959]
[1610363904305,3.37833263,1082.7,1082.3,4.00959]
[1610363904705,3.21428423,1082.9,1082.3,4.00959]
[1610363904905,3.37729633,1082.6,1082.3,4.00959]
[1610363905306,1.83398535,1082.8,1082.3,4.00959]
[1610363905505,2.73286958,1082.9,1082.3,4.00959]
[1610363905708,2.73286958,1082.9,1082.1,3.7504]
[1610363905709,1.83539209,1082.9,1082.8,4.00959]
[1610363905906,1.73979209,1082.9,1082.8,4.00959]
[1610363906107,2.84939987,1083.0,1082.8,4.00959]
[1610363906408,4.59842197,1083.4,1082.8,4.00959]
[1610363906809,4.60273128,1083.5,1082.8,4.00959]
[1610363907208,2.64662788,1083.3,1082.6,1.8902]
[1610363907410,4.60397754,1083.5,1082.6,1.8902]
[1610363907810,4.00959,1083.0,1082.6,1.8902]
[1610363908211,1.6802,1083.4,1082.6,1.8902]
[1610363908712,2.64586559,1083.3,1082.6,1.8902]
[1610363909109,2.64586559,1083.3,1082.1,1.8791]
[1610363909310,2.64586559,1083.3,1081.8,76.5664]
[1610363909911,2.64586559,1083.3,1082.6,4.00959]
[1610363910112,2.64586559,1083.3,1082.2,2.2954]
[1610363910113,7.24758488,1083.3,1082.2,2.2954]
[1610363910512,4.59900339,1083.2,1082.2,2.2954]
[1610363910714,4.59039827,1082.8,1082.2,2.2954]
[1610363910911,6.57999827,1082.8,1082.2,2.2954]
[1610363911112,4.58247567,1082.5,1081.8,74.6955]
[1610363911311,6.24947567,1082.5,1081.8,74.6955]
[1610363911512,1.667,1082.5,1081.8,74.6955]
[1610363911911,1.667,1082.5,1081.8,78.70509]
[1610363911912,0.88001505,1082.2,1081.8,78.70509]
[1610363912114,7.43265523,1082.7,1081.8,78.70509]
[1610363912312,7.43265523,1082.7,1081.8,80.80079]
[1610363912512,2.61630136,1082.6,1081.8,80.80079]